Cogmind - Beta 15 @@@ ROGUE MODE // 2025.09.09 @ 17:03:42 Player: TapeIsSticky Result: Destroyed by P-60 Hacker with Shock Rifle Performance ------------- Evolutions (0) 0 Regions Visited (3) 600 Robots Destroyed (38) 190 Value Destroyed (846) 846 Prototype IDs (0) 0 Alien Tech Used (0) 0 Bonus (0) 0 TOTAL SCORE: 1636 Bonus ------- None Cogmind --------- Core Integrity 0/250 Matter 227/300 Energy 238/250 System Corruption 1% Temperature Cool (18) Movement Core (1550) Ox30 Location -9/Recycling Parts ------- > --- POWER (1) -------- Ion Engine > --- PROPULSION (2) --- Compact Wheel > --- UTILITY (2) ------ Huge Storage Unit Core Shielding > --- WEAPON (2) ------- Medium Laser Light Cannon > --- INVENTORY (25) --- Ion Engine Faulty Heavy Ion Engine Heavy Ion Engine Subdweller Monowheel Medium Storage Unit High-capacity Matter Pod (21) Seismic Detector Transport Network Coupler Makeshift Thermal Plating Medium Laser Rocket Launcher Rocket Launcher Subdweller Shrapnel Launcher Peak State ------------ > --- POWER ------------ Ion Engine > --- PROPULSION ------- Light Treads Light Treads > --- UTILITY ---------- Huge Storage Unit Seismic Detector > --- WEAPON ----------- Rocket Launcher Rocket Launcher > --- INVENTORY -------- Ion Engine Heavy Ion Engine Heavy Ion Engine Light Treads Light Treads Compact Wheel Medium Storage Unit High-capacity Matter Pod Transport Network Coupler Core Shielding Makeshift Thermal Plating Medium Laser Medium Laser Light Cannon Light Cannon Light Cannon Light Cannon [Rating: 11] Favorites ----------- Power Ion Engine Engine Ion Engine Propulsion Light Treads Treads Light Treads Wheel Compact Wheel Utility Huge Storage Unit Device Seismic Detector Storage Huge Storage Unit Protection Core Shielding Weapon Light Cannon Energy Gun Medium Laser Ballistic Gun Light Assault Rifle Ballistic Cannon Light Cannon Launcher Rocket Launcher Build | -11 -10 -10 -9 ------- Run | Yrd Mat Sub Rec Slots Evolved . | . . . . Power . | . . . . Propulsion . | . . . . Utility . | . . . . Weapon . | . . . . Parts Attached 23 | 7 6 8 2 Power 3 | 1 2 . . Engine 3 | 1 2 . . Core . | . . . . Reactor . | . . . . Propulsion 5 | 2 . 2 1 Treads 4 | 2 . 2 . Leg . | . . . . Wheel 1 | . . . 1 Hover . | . . . . Flight . | . . . . Utility 6 | 2 3 1 . Device 2 | 1 1 . . Storage 3 | 1 2 . . Processor . | . . . . Hackware . | . . . . Protection 1 | . . 1 . Artifact . | . . . . Weapon 9 | 2 1 5 1 Energy Gun 2 | 1 . . 1 Energy Cannon . | . . . . Ballistic Gun 1 | 1 . . . Ballistic Cannon 4 | . 1 3 . Launcher 2 | . . 2 . Special Weapon . | . . . . Impact Weapon . | . . . . Slashing Weapon . | . . . . Piercing Weapon . | . . . . Special Melee Weapon . | . . . . Unidentified Prototypes . | . . . . Parts Lost 8 | . 1 3 4 Power . | . . . . Propulsion 4 | . . 2 2 Utility 1 | . 1 . . Weapon 3 | . . 1 2 Highest Loss Streak 4 | . 1 2 4 To Critical Strikes . | . . . . Average Backups 12 | 3 9 16 15 Power 2 | . 1 3 3 Propulsion 1 | 1 1 2 1 Utility 3 | . 3 4 5 Weapon 4 | . 3 5 5 Tool/Special . | . . . . Unused Backups 10 | 1 1 . 8 Power 3 | . . . 3 Propulsion 2 | 1 . . 1 Utility 3 | . . . 3 Weapon 2 | . 1 . 1 Tool/Special . | . . . . Average Slot Usage (%) 99 | . 99 99 97 Engine 14 | . 14 14 14 Treads 27 | . 28 27 16 Device 9 | . 13 6 . Storage 14 | . 14 14 14 Protection 4 | . . 7 14 Energy Gun 7 | . 14 2 . Ballistic Gun 2 | . 5 . . Ballistic Cannon 18 | . 8 25 28 Peak Build Rating 11 | 7 9 11 9 Average Rating 8 | 5 7 9 8 On Entrance 6 | . 7 9 9 Naked Turns . | . . . . Heaviest Build 94 | 14 91 94 92 Greatest Support 40 | 40 40 40 40 Greatest Overweight (x) 5 | 2 2 2 5 Average Overweight (x) 1 | . . 2 4 Largest Inventory Capacity 25 | 8 25 25 25 Average Capacity 19 | 7 14 25 25 Most Carried 17 | 5 15 17 16 Average Carried 12 | 3 9 16 15 Final Capacity 25 | 8 25 25 25 Final Carried 16 | 4 15 16 13 Class Distribution -------------------- 100% | Mutant Dominant Class ---------------- Mutant | -10/Materials Mutant | -10/Subcaves Mutant | -9/Recycling Resources | -11 -10 -10 -9 ----------- Run | Yrd Mat Sub Rec Matter Collected 1179 | 290 351 503 35 Remotely . | . . . . Salvage Created 996 | 139 625 90 142 Parts 65 | 11 37 9 8 Haulers Intercepted 2 | . 2 . . Recyclers Shooed 2 | 1 1 . . Parts Field Recycled . | . . . . Retrieved Matter . | . . . . Parts Self-Destructed 17 | . . 17 . Prevented . | . . . . Kills | -11 -10 -10 -9 ------- Run | Yrd Mat Sub Rec Combat Hostiles Destroyed 25 | . 12 9 4 Guns 8 | . 6 2 . Cannons 14 | . 6 4 4 AOE 3 | . . 3 . Classes Destroyed 11 | 2 5 2 2 Builder 2 | . 2 . . Tunneler 4 | 4 . . . Hauler 2 | . 2 . . Recycler 3 | 1 2 . . Turret 1 | . . 1 . Watcher 1 | . 1 . . Swarmer 10 | . 6 4 . Grunt 6 | . 6 . . Sentry 2 | . . . 2 Programmer 2 | . . . 2 Subdweller 5 | . . 5 . Best Kill Streak 7 | 4 7 3 4 Combat Bots Only 4 | . 4 2 4 Max Kills in Single Turn 3 | 1 2 3 1 Gunslinging . | . . . . Exploded 2 | . . 2 . Melee . | . . . . Uniques/NPCs Destroyed . | . . . . Combat | -11 -10 -10 -9 -------- Run | Yrd Mat Sub Rec Hostile Shots Fired 157 | . 61 70 26 Missed 45 | . 19 19 7 Hits 112 | . 42 51 19 Projectile 112 | . 42 51 19 Critical Strikes 3 | . 1 1 1 Damage Taken 1672 | . 422 974 276 Core 257 | . 112 97 48 Absorbed by Shields . | . . . . Redirected to Shielding 23 | . . 11 12 Core Remaining (%) 100 | 100 . . . Volleys Fired 122 | 20 44 46 12 Largest 2 | 2 2 2 2 Hottest 80 | 70 80 80 80 Shots Fired 236 | 40 88 84 24 Gun 115 | 40 70 3 2 Cannon 112 | . 18 72 22 Launcher 9 | . . 9 . Special . | . . . . Kinetic 158 | 20 44 72 22 Thermal 69 | 20 44 3 2 Explosive 9 | . . 9 . Electromagnetic . | . . . . Robot Hit Streak 12 | 9 7 12 11 Robot Miss Streak 3 | 2 3 2 2 Penetration Max . | . . . . Secondary Targets . | . . . . Shots Hit Robots 138 | 27 56 38 17 Core Hits 53 | 8 26 14 5 Critical Kills . | . . . . Critical Parts Destroyed . | . . . . Critical Strikes 7 | 2 4 . 1 Burn 6 | 2 4 . . Blast 1 | . . . 1 Melee Attacks . | . . . . Impact . | . . . . Slashing . | . . . . Piercing . | . . . . Sneak Attacks . | . . . . Combat Hostiles . | . . . . Follow-up Attacks . | . . . . Damage Inflicted 2534 | 286 787 1104 357 Guns 885 | 285 530 41 29 Cannons 1069 | . 225 516 328 Explosions 547 | . . 547 . Melee . | . . . . Ramming 33 | 1 32 . . Kinetic 1250 | 96 310 516 328 Thermal 704 | 189 445 41 29 Explosive 547 | . . 547 . Electromagnetic . | . . . . Impact . | . . . . Slashing . | . . . . Piercing . | . . . . Highest Corruption 1 | . . . 1 Average Corruption 1 | . . . 1 Corruption Purged . | . . . . Corruption Blocked . | . . . . Overload Shots . | . . . . Overflow Damage 61 | . . 47 14 Projectiles 14 | . . . 14 Explosions 47 | . . 47 . Melee . | . . . . Knockbacks 5 | . 2 3 . Impact 1 | . 1 . . Kinetic 4 | . 1 3 . Secondary . | . . . . Self-Inflicted Damage 56 | . . 56 . Shots 2 | . . 2 . Rammed 7 | 1 6 . . Targets Rammed 8 | 1 7 . . Kicked . | . . . . Crushed 1 | . 1 . . Highest Temperature 234 | 170 234 . 18 Average Temperature 63 | 66 67 . 11 Received Heat Transfer 327 | . 165 126 36 Siege Activations . | . . . . Martial Activations . | . . . . Shielding Activations . | . . . . Robots Disrupted . | . . . . Combat Hostiles . | . . . . Robots Corrupted . | . . . . Combat Hostiles . | . . . . Parts Fried . | . . . . Impact Corruptions . | . . . . Robots Melted . | . . . . Combat Hostiles . | . . . . Parts Melted 4 | 1 2 1 . Heat Transferred 2479 | 703 1591 111 74 Parts Sabotaged . | . . . . Parts Stolen . | . . . . Parts Stripped . | . . . . Power Chain Reactions . | . . . . Alert | -11 -10 -10 -9 ------- Run | Yrd Mat Sub Rec Maximum Alert Level . | . . . . Low Security (%) 100 | 100 100 . 100 Level 1 . | . . . . Level 2 . | . . . . Level 3 . | . . . . Level 4 . | . . . . Level 5 . | . . . . High Security . | . . . . Max Security . | . . . . Peak Influence 103 | 10 103 . 70 Initial . | . . . . Average 21 | 1 24 . 35 Influence Increases 679 | 25 384 160 110 Destroy 0b10 Robot/C 420 | . 240 100 80 Destroy 0b10 Robot/NC 60 | 25 35 . . Destroy Leader 56 | . 56 . . Successful Hack 38 | . 38 . . Select Force Hacks 30 | . . . 30 Lose Combat Pursuer 75 | . 15 60 . Influence Decreases 629 | 25 384 160 60 Time Decay 589 | 25 384 160 20 Lost Part 40 | . . . 40 Squads Dispatched 1 | . 1 . . Investigation . | . . . . Extermination . | . . . . Reinforcement 1 | . 1 . . Assault . | . . . . Garrison . | . . . . Intercept . | . . . . Searches Triggered . | . . . . Construction Impeded . | . . . . Haulers Reinforced . | . . . . Active Scanning Responses . | . . . . Cargo Convoy Interrupts . | . . . . Stealth | -11 -10 -10 -9 --------- Run | Yrd Mat Sub Rec Distress Signals . | . . . . Communications Jammed . | . . . . Distress Signals . | . . . . Times Spotted 32 | . 15 12 5 Peak Tracking Total 5 | . 3 4 5 Tactical Retreats 4 | . 1 3 . Traps | -11 -10 -10 -9 ------- Run | Yrd Mat Sub Rec Traps Triggered . | . . . . Indirectly . | . . . . Trap Hack Attempts . | . . . . Triggered . | . . . . Disarmed . | . . . . Reprogrammed . | . . . . Reused . | . . . . Traps Extracted . | . . . . Installed . | . . . . Triggered . | . . . . Machines | -11 -10 -10 -9 ---------- Run | Yrd Mat Sub Rec Machines Disabled 2 | . . 2 . Max in Single Turn 2 | . . 2 . Machines Repaired . | . . . . Machines Dismantled . | . . . . Machines Sabotaged . | . . . . Overloaded Fab Kills . | . . . . Hacking | -11 -10 -10 -9 --------- Run | Yrd Mat Sub Rec Machines Accessed 10 | . 9 . 1 Terminals 6 | . 6 . . Fabricators . | . . . . Repair Stations 1 | . 1 . . Recycling Units 3 | . 2 . 1 Scanalyzers . | . . . . Garrison Access . | . . . . Total Hacks 23 | . 21 . 2 Successful 14 | . 13 . 1 Failed 8 | . 7 . 1 Catastrophic 1 | . 1 . . Database Lockouts 1 | . 1 . . Manual 14 | . 12 . 2 Terminals 16 | . 16 . . Fabricators . | . . . . Repair Stations 2 | . 2 . . Recycling Units 5 | . 3 . 2 Scanalyzers . | . . . . Garrison Access . | . . . . Terminal Hacks 3 | . 3 . . Robot Analysis 2 | . 2 . . Registered Components 1 | . 1 . . Fabricator Hacks . | . . . . Repair Station Hacks 1 | . 1 . . Scan Component 1 | . 1 . . Recycling Unit Hacks 2 | . 2 . . Retrieve Components 2 | . 2 . . Scanalyzer . | . . . . Garrison Access Hacks . | . . . . Unauthorized Hacks 8 | . 7 . 1 Terminals 7 | . 7 . . Botnet 1 | . 1 . . Skim 6 | . 6 . . Fabricators . | . . . . Repair Stations . | . . . . Recycling Units 1 | . . . 1 Tunnel 1 | . . . 1 Scanalyzers . | . . . . Garrison Access . | . . . . Data Cores Recovered . | . . . . Used . | . . . . Hacking Detections 8 | . 8 . . Full Trace Events 1 | . 1 . . Feedback Events . | . . . . Feedback Blocked . | . . . . Robot Schematics Acquired . | . . . . Robots Built . | . . . . Authchips . | . . . . Time . | . . . . Total Robot Build Rating . | . . . . Part Schematics Acquired . | . . . . Parts Built . | . . . . Authchips . | . . . . Time . | . . . . Total Part Build Rating . | . . . . Parts Repaired . | . . . . Time . | . . . . Parts Recycled . | . . . . Recycled Matter . | . . . . Retrieved Matter . | . . . . Retrieved Components 10 | . 10 . . Parts Scanalyzed . | . . . . Part Schematics Acquired . | . . . . Parts Damaged . | . . . . Bothacking | -11 -10 -10 -9 ------------ Run | Yrd Mat Sub Rec Used RIF Installer . | . . . . Robots Hacked . | . . . . Non-combat . | . . . . Combat . | . . . . Robot Hacks Applied . | . . . . Relay Couplers Released . | . . . . Fabnet Peak Effective % . | . . . . Robots Rewired . | . . . . Allies Hacked . | . . . . Hacks Repelled . | . . . . Allies | -11 -10 -10 -9 -------- Run | Yrd Mat Sub Rec Total Allies . | . . . . Largest Group . | . . . . Highest-Rated Group . | . . . . Highest-Rated Ally . | . . . . Total Orders . | . . . . Ally Attacks . | . . . . Total Damage . | . . . . Kills . | . . . . Allies Corrupted . | . . . . Allies Melted . | . . . . Intel | -11 -10 -10 -9 ------- Run | Yrd Mat Sub Rec Active Infowar (turns) 2172 | 11 1388 773 . Seismic 2172 | 11 1388 773 . Robot Analysis Total 2 | . 2 . . Derelict Logs Recovered 2 | . . 2 . Drone Launches . | . . . . Drone Recoveries . | . . . . Exploration | -11 -10 -10 -9 ------------- Run | Yrd Mat Sub Rec Turns Passed 3496 | 240 1406 1800 50 Spaces Moved 1208 | 62 631 509 6 Core 17 | 17 . . . Treads 1186 | 45 631 509 1 Legs . | . . . . Wheels 5 | . . . 5 Hover . | . . . . Flight . | . . . . Fastest Speed 50 | 50 160 320 175 Average Speed 245 | 141 195 320 199 Slowest Speed 320 | 160 320 320 320 Overloaded Moves . | . . . . Propulsion Burnouts . | . . . . Robots Hopped . | . . . . Potential Cave-ins . | . . . . Cave-ins Triggered . | . . . . Exploration Rate (%) 34 | 4 95 35 5 Regions Visited 3 Branch Regions 2 Pre-discovered Areas 2 | . 1 . 1 Known Exits Taken 1 | . . 1 . Unknown Exits Taken 2 | 1 1 . . Scrap Searched 1 | . . 1 . Spaces Dug 17 | . . 17 . Terrain Destroyed 60 | . . 60 . Melee . | . . . . Projectile . | . . . . AOE 60 | . . 60 . Terrain Rammed . | . . . . Walls Destroyed . | . . . . Machines Disabled . | . . . . Actions | -11 -10 -10 -9 --------- Run | Yrd Mat Sub Rec Total 1509 | 176 717 594 22 Wait 117 | 80 13 24 . Move 1205 | 61 630 508 6 Hop . | . . . . Pick Up 23 | 6 13 4 . Fast Attach 6 | 6 . . . Attach 8 | 1 1 3 3 Detach . | . . . . Swap 14 | . 5 8 1 Drop 6 | 1 4 1 . Fire 122 | 20 44 46 12 Melee . | . . . . Ram . | . . . . Kick . | . . . . Crush 8 | 1 7 . . Escape Stasis . | . . . . Rewire . | . . . . Trap . | . . . . Miscellaneous . | . . . . Route ------- -11/Scrapyard -10/Materials (discovered 5 exits: *Mat x3 / Min / [*Sub]) -10/Subcaves (discovered 3 exits: Mat / *Rec / [Scr]) -9/Recycling History --------- Turn | Location | Event 3 | -11/Scrapyard | Discovered new exit (range 15) 241 | -11/Scrapyard | Entered Materials 242 | -10/Materials | Met a group of wandering Federalists 308 | -10/Materials | Build established: Mutant 505 | -10/Materials | Central database locked down 578 | -10/Materials | Discovered new exit (range 15) 966 | -10/Materials | Discovered new exit (range 10) 1140 | -10/Materials | Discovered new exit (range 11) 1149 | -10/Materials | Identified exit to Materials 1149 | -10/Materials | Identified exit to Mines 1228 | -10/Materials | Learned location of Storage (-9) 1361 | -10/Materials | Learned Materials emergency access door positions 1411 | -10/Materials | Loaded intel: 24 trap records 1470 | -10/Materials | Learned 2 Materials zone layouts 1541 | -10/Materials | Learned location of 2 exits from Subcaves 1625 | -10/Materials | Discovered new exit (range 8) 1647 | -10/Materials | Entered Subcaves 1648 | -10/Subcaves | Continued accompanying wandering Federalists (5) 1648 | -10/Subcaves | Identified exit to Materials 1648 | -10/Subcaves | Identified exit to Recycling 1709 | -10/Subcaves | Shifting Twisted Machinery released Barrage Gun 1752 | -10/Subcaves | Learned Materials security intel 1926 | -10/Subcaves | Ambushed by Subdweller buried in earth 1929 | -10/Subcaves | Core integrity fell below 50% 2904 | -10/Subcaves | Core integrity fell below 20% 2997 | -10/Subcaves | Shifting Twisted Machinery released Sub. Shrapnel Launcher 3447 | -10/Subcaves | Entered Recycling 3497 | -9/Recycling | Destroyed by P-60 Hacker with Shock Rifle Last Messages --------------- LOCATION=RECYCLING GOAL=ESCAPE 03451_ Connecting with Recycling Unit... >>Force(Tunnel) DISCOVERED[-5/Factory] 03459_ P-60 Hacker springs to life. 03459_ Y-45 Defender springs to life. 03459_ P-60 Hacker springs to life. 03463_ Lgt. Cannon destroyed. 03465_ P-60 Hacker destroyed. 03468_ Destroyed Gravmag System. 03471_ P-60 Hacker Mic. Nuclear Core blasted off. 03471_ P-60 Hacker destroyed. 03477_ R-06 Scavenger collects Imp. Heat Sink. 03483_ Y-45 Defender destroyed. 03484_ Acquired 35 matter. 03485_ Lgt. Treads destroyed. 03491_ Lgt. Cannon destroyed. 03497_ Y-45 Defender destroyed. Map ----- +----------------------------------------------------+ | ?????????????????????????????????????????????????? | | ?????????????????????????????????????????????????? | | ?????????????????????????????????????????????????? | | ?????????????????????????????????????????????????? | | ?????????????????????????????????????????????????? | | ?????????????????????????????????????????????????? | | ?????????????????????????????????????????????????? | | ?????????????????????????????????????????????????? | | ?????????????????????????????????????????????????? | | ?????????????????????????????????????????????????? | | ?????????????????????????????????????????????????? | | ?????????????????????????????????????????????????? | | ?????????????????????????????????????????????????? | | ?????????????????????????????????????????????????? | | ????????????????????????####?????????????????????? | | ???????????????????????? #?????????????????????? | | ???????????????????????? #?????????????????????? | | ???????????????????????? #?????????????????????? | | ????????????????????##### #??????????????????????? | | ????????????????????# #??????????????????????? | | ??????????????????### #??????????????????????? | | ??????????????????#"" #?#########????????????? | | ??????????????????#"Y %#% | #????????????? | | ??????????????????#"" *%#pa%! =#????????????? | | ??????????????????### !%/r [ [! #????????????? | | ????????????????????# @# ! #????????????? | | ?????????????? #?? #????????????? | | ?????????? #????######????????????? | | ??????????? #??????????????????????? | | ???????????####+######### #??????????????????????? | | ???????????????????????? #??????????????????????? | | ???????????????????????? #??????????????????????? | | ????????????????????????= #??????????????????????? | | ????????????????????????# ??????????????????????? | | ????????????????????????? ??????????????????????? | | ?????????????????????????r ??????????????????????? | | ????????????????????????? ??????????????????????? | | ?????????????????????????+##?????????????????????? | | ????????????????????????? ???????????????????????? | | ????????????????????????? ???????????????????????? | | ????????????????????????? ???????????????????????? | | ?????????????????????????????????????????????????? | | ?????????????????????????????????????????????????? | | ?????????????????????????????????????????????????? | | ?????????????????????????????????????????????????? | | ?????????????????????????????????????????????????? | | ?????????????????????????????????????????????????? | | ?????????????????????????????????????????????????? | | ?????????????????????????????????????????????????? | | ?????????????????????????????????????????????????? | +----------------------------------------------------+ Best States ------------- Heat Dissipation 25 Energy Generation 10 Energy Capacity 250 Matter Stores 300 Matter Capacity 300 Sight Range 16 Terrain Scan Density 10 Core Shielding 20 Evasion (%) 50 Recoil Reduction 2 Item Schematics ----------------- None Robot Schematics ------------------ None Fabricated ------------ Nothing Repaired ---------- Nothing Alien Tech Used ----------------- None Achievements -------------- None Challenges ------------ None Game ------ Seed TowerSpikedRailgun Manual? 0 Play Time 00:12:56 Cumulative 191.8 hours Start 2025.09.09 @ 16:51:34 End 2025.09.09 @ 17:03:42 Sessions 1 Manual Loads 0 Difficulty Rogue Special Mode None Game No. 105 Rogue 105 Adventurer 0 Explorer 0 Win Type - Total 21 Types 9/1/7/1/0/1/1/1/0/0 Lore% 72 Gallery% 65 Achievement% 71 Wizard Run 0 Options --------- Layout 1 ASCII 0 Keyboard 0 Movement Arrows Keybinds 0 Fullscreen 2 Font 24/Tamsyn Map View 50x35 Zoom Use 0% Tactical HUD 1 Map Filters NONE Filters NONE Steam 1 RUN: e53868a8-0c4d-416a-ad32-e21a108b642c